[Event "ONJK-C 2019"]
[Site "Borne"]
[Date "2019.08.05"]
[Round "1.12"]
[White "De Keukelaere, Wouter"]
[Black "Kumar, Prajit Sai"]
[Result "0-1"]
[ECO "B70"]
[WhiteElo "1240"]
[BlackElo "1574"]
[Annotator "NA"]
[PlyCount "72"]
[EventDate "2019.08.05"]
[EventType "swiss"]
[EventCountry "NED"]
[SourceTitle "playchess.com"]
[Source "ChessBase"]
[SourceQuality "1"]
[TimeControl "5400+30"]

1. e4 {[%emt 0:00:00]} c5 {[%emt 0:00:00]} 2. Nf3 {[%emt 0:00:00]} d6 {[%emt 0:00:00]} 3. d4 {[%emt 0:00:00]} cxd4 {[%emt 0:00:00]} 4. Nxd4 {[%emt 0:00:04]} Nf6 {[%emt 0:00:00]} 5. Nc3 {[%emt 0:00:11]} g6 {[%emt 0:00:00]} 6. Be3 {[%emt 0:00:30]} Bg7 {[%emt 0:00:05]} 7. Be2 {[%emt 0:01:41]} Nbd7 {[%emt 0:00:57]} 8. Qd2 {[%emt 0:02:26]} a6 {[%emt 0:01:40]} 9. O-O {[%emt 0:02:31]} O-O {[%emt 0:02:45]} 10. Kh1 {[%emt 0:05:48]} Nc5 {[%emt 0:02:38]} 11. f3 {[%emt 0:02:30]} Bd7 {[%emt 0:06:20]} 12. Bh6 {[%emt 0:02:44]} Qb6 {[%emt 0:08:35]} 13. Bxg7 {[%emt 0:01:53]} Kxg7 {[%emt 0:00:09]} 14. Nb3 {[%emt 0:04:20]} Nxb3 {[%emt 0:02:18]} 15. axb3 {[%emt 0:03:12]} Rac8 {[%emt 0:04:06]} 16. Rac1 {[%emt 0:06:28]} Bc6 {[%emt 0:10:16]} 17. Rfd1 {[%emt 0:02:30]} Rfd8 {[%emt 0:03:46]} 18. Bc4 {[%emt 0:05:17]} Rd7 {[%emt 0:05:22]} 19. Nd5 {[%emt 0:08:06]} Nxd5 {[%emt 0:01:08]} 20. exd5 {[%emt 0:15:43]} Bb5 {[%emt 0:00:15]} 21. Qd4+ {[%emt 0:02:46]} Qxd4 {[%emt 0:00:14]} 22. Rxd4 {[%emt 0:00:43]} Bxc4 {[%emt 0:00:07]} 23. Rxc4 {[%emt 0:01:30]} Rxc4 {[%emt 0:00:39]} 24. bxc4 {[%emt 0:00:17]} Rc7 {[%emt 0:00:08]} 25. b3 {[%emt 0:00:41]} Kf6 {[%emt 0:01:04]} 26. Re1 {[%emt 0:01:09]} e6 {[%emt 0:00:35]} 27. Rd1 {[%emt 0:02:52]} Rc5 {[%emt 0:02:31]} 28. f4 {[%emt 0:03:24]} exd5 {[%emt 0:01:04]} 29. Rxd5 {[%emt 0:00:31]} Rxd5 {[%emt 0:00:06]} 30. cxd5 {[%emt 0:00:06]} Kf5 {[%emt 0:00:04]} 31. c4 {[%emt 0:11:04]} Kxf4 {[%emt 0:03:10]} 32. Kg1 {[%emt 0:05:04]} b6 {[%emt 0:00:33]} 33. Kf2 {[%emt 0:00:15]} Ke4 {[%emt 0:00:32]} 34. Ke2 {[%emt 0:00:01]} Kd4 {[%emt 0:00:18]} 35. Kd2 {[%emt 0:00:15]} b5 {[%emt 0:00:14]} 36. c5 {[%emt 0:01:52]} Kxc5 {[%emt 0:00:09]} 0-1

[Event "ONJK-C 2019"]
[Site "Borne"]
[Date "2019.08.05"]
[Round "1.13"]
[White "Boeren, Jurriaan"]
[Black "Van der Tuin, Tristan"]
[Result "1-0"]
[ECO "C10"]
[WhiteElo "1522"]
[BlackElo "1238"]
[Annotator "NA"]
[PlyCount "81"]
[EventDate "2019.08.05"]
[EventType "swiss"]
[EventCountry "NED"]
[SourceTitle "playchess.com"]
[Source "ChessBase"]
[SourceQuality "1"]
[TimeControl "5400+30"]

1. e4 {[%emt 0:00:00]} e6 {[%emt 0:00:00]} 2. d4 {[%emt 0:00:00]} d5 {[%emt 0:00:00]} 3. Nc3 {[%emt 0:00:00]} c5 {[%emt 0:00:00]} 4. dxc5 {[%emt 0:00:23]} Bxc5 {[%emt 0:00:20]} 5. exd5 {[%emt 0:00:57]} Nf6 {[%emt 0:00:33]} 6. Bg5 {[%emt 0:00:24]} Be7 {[%emt 0:00:29]} 7. dxe6 {[%emt 0:00:32]} Qxd1+ {[%emt 0:00:15]} 8. Rxd1 {[%emt 0:00:10]} fxe6 {[%emt 0:00:17]} 9. Nb5 {[%emt 0:01:40]} Na6 {[%emt 0:00:21]} 10. Nd6+ {[%emt 0:00:48]} Bxd6 {[%emt 0:00:30]} 11. Rxd6 {[%emt 0:00:23]} O-O {[%emt 0:00:31]} 12. Bxa6 {[%emt 0:00:50]} bxa6 {[%emt 0:00:12]} 13. Bxf6 {[%emt 0:05:17]} Rxf6 {[%emt 0:00:19]} 14. Nf3 {[%emt 0:00:34]} Bb7 {[%emt 0:00:30]} 15. Rd3 {[%emt 0:00:44]} e5 {[%emt 0:00:41]} 16. Re3 {[%emt 0:02:18]} e4 {[%emt 0:01:28]} 17. Nd2 {[%emt 0:01:27]} Re8 {[%emt 0:00:31]} 18. f3 {[%emt 0:01:56]} Rfe6 {[%emt 0:00:39]} 19. fxe4 {[%emt 0:00:19]} Bxe4 {[%emt 0:00:13]} 20. Nxe4 {[%emt 0:00:12]} Rxe4 {[%emt 0:00:11]} 21. Rxe4 {[%emt 0:00:07]} Rxe4+ {[%emt 0:00:03]} 22. Kd2 {[%emt 0:00:19]} Kf7 {[%emt 0:00:38]} 23. Rf1+ {[%emt 0:00:29]} Kg6 {[%emt 0:00:06]} 24. Kd3 {[%emt 0:01:10]} Re6 {[%emt 0:00:27]} 25. c4 {[%emt 0:00:22]} a5 {[%emt 0:00:37]} 26. c5 {[%emt 0:01:07]} h6 {[%emt 0:00:28]} 27. Rc1 {[%emt 0:00:17]} Kf5 {[%emt 0:00:27]} 28. c6 {[%emt 0:01:09]} Rd6+ {[%emt 0:00:15]} 29. Ke3 {[%emt 0:01:02]} Re6+ {[%emt 0:00:20]} 30. Kd4 {[%emt 0:00:52]} Re4+ {[%emt 0:00:20]} 31. Kd5 {[%emt 0:00:27]} Re5+ {[%emt 0:00:57]} 32. Kd6 {[%emt 0:00:09]} Kf6 {[%emt 0:00:10]} 33. Rf1+ {[%emt 0:00:27]} Rf5 {[%emt 0:00:40]} 34. Rxf5+ {[%emt 0:00:14]} Kxf5 {[%emt 0:00:05]} 35. c7 {[%emt 0:00:06]} g5 {[%emt 0:00:11]} 36. c8=Q+ {[%emt 0:00:06]} Kg6 {[%emt 0:00:09]} 37. g4 {[%emt 0:00:15]} Kf7 {[%emt 0:00:18]} 38. Qe6+ {[%emt 0:00:07]} Kf8 {[%emt 0:00:17]} 39. Qg6 {[%emt 0:00:35]} a6 {[%emt 0:00:24]} 40. Ke6 {[%emt 0:00:09]} h5 {[%emt 0:00:11]} 41. Qf7# {[%emt 0:00:37] Ke8} 1-0

[Event "ONJK-C 2019"]
[Site "Borne"]
[Date "2019.08.05"]
[Round "1.14"]
[White "Li-Behn, Thomas"]
[Black "Ang, Rufus"]
[Result "0-1"]
[ECO "D02"]
[WhiteElo "1219"]
[BlackElo "1498"]
[Annotator "NA"]
[PlyCount "58"]
[EventDate "2019.08.05"]
[EventType "swiss"]
[EventCountry "NED"]
[SourceTitle "playchess.com"]
[Source "ChessBase"]
[SourceQuality "1"]
[TimeControl "5400+30"]

1. d4 {[%emt 0:00:00]} d5 {[%emt 0:00:00]} 2. Bf4 {[%emt 0:00:00]} Nc6 {[%emt 0:00:05]} 3. Nf3 {[%emt 0:00:06]} Bf5 {[%emt 0:00:07]} 4. e3 {[%emt 0:01:20]} a6 {[%emt 0:00:38]} 5. Bd3 {[%emt 0:00:44]} Bg6 {[%emt 0:00:10]} 6. c3 {[%emt 0:00:20]} Nf6 {[%emt 0:00:37]} 7. Qc2 {[%emt 0:02:16]} Be4 {[%emt 0:00:46]} 8. Nbd2 {[%emt 0:00:20]} Bxd3 {[%emt 0:02:11]} 9. Qxd3 {[%emt 0:00:48]} Qd7 {[%emt 0:00:12]} 10. Ne5 {[%emt 0:00:22]} Qe6 {[%emt 0:05:36]} 11. Ndf3 {[%emt 0:02:21]} h6 {[%emt 0:03:36]} 12. h4 {[%emt 0:04:39]} Ne4 {[%emt 0:01:57]} 13. Qc2 {[%emt 0:09:38]} b5 {[%emt 0:02:01]} 14. a4 {[%emt 0:03:45]} b4 {[%emt 0:00:29]} 15. a5 {[%emt 0:02:19]} Rc8 {[%emt 0:01:10]} 16. Qa4 {[%emt 0:01:18]} bxc3 {[%emt 0:03:52]} 17. Nxc6 {[%emt 0:03:08]} cxb2 {[%emt 0:00:51]} 18. Nb4+ {[%emt 0:04:11]} Kd8 {[%emt 0:01:52]} 19. Rb1 {[%emt 0:03:31]} Nc3 {[%emt 0:01:08]} 20. Nc6+ {[%emt 0:01:00]} Ke8 {[%emt 0:02:51]} 21. Nd8+ {[%emt 0:05:52]} Kxd8 {[%emt 0:01:07]} 22. Qc2 {[%emt 0:01:11]} Nxb1 {[%emt 0:01:25]} 23. Qxb2 {[%emt 0:00:29]} Qe4 {[%emt 0:03:02]} 24. O-O {[%emt 0:00:53]} e6 {[%emt 0:01:49]} 25. Rxb1 {[%emt 0:02:04]} f6 {[%emt 0:06:12]} 26. Rc1 {[%emt 0:01:13]} Qd3 {[%emt 0:00:50]} 27. Rc3 {[%emt 0:03:41]} Qd1+ {[%emt 0:03:38]} 28. Kh2 {[%emt 0:00:41]} Qa4 {[%emt 0:00:11]} 29. Qd2 {[%emt 0:03:08]} Bb4 {[%emt 0:05:39]} 0-1

[Event "ONJK-C 2019"]
[Site "Borne"]
[Date "2019.08.06"]
[Round "2.1"]
[White "De Rooij, Kevin"]
[Black "Klugstedt, Vincent"]
[Result "0-1"]
[ECO "E21"]
[WhiteElo "1480"]
[BlackElo "1850"]
[Annotator "NA"]
[PlyCount "122"]
[EventDate "2019.08.05"]
[EventType "swiss"]
[EventCountry "NED"]
[SourceTitle "playchess.com"]
[Source "ChessBase"]
[SourceQuality "1"]
[TimeControl "5400+30"]

1. d4 {[%emt 0:00:00]} Nf6 {[%emt 0:00:00]} 2. c4 {[%emt 0:00:00]} e6 {[%emt 0:00:00]} 3. Nc3 {[%emt 0:00:27]} Bb4 {[%emt 0:00:00]} 4. Qc2 {[%emt 0:00:00]} b6 {[%emt 0:00:44]} 5. Nf3 {[%emt 0:03:23]} Bb7 {[%emt 0:00:24]} 6. Bd2 {[%emt 0:01:00]} O-O {[%emt 0:01:20]} 7. e3 {[%emt 0:02:28]} Bxc3 {[%emt 0:01:50]} 8. Bxc3 {[%emt 0:01:25]} Ne4 {[%emt 0:00:44]} 9. Bd3 {[%emt 0:03:51]} f5 {[%emt 0:01:01]} 10. Rg1 {[%emt 0:09:45]} d6 {[%emt 0:05:50]} 11. Nd2 {[%emt 0:03:19]} Qh4 {[%emt 0:03:26]} 12. Nf3 {[%emt 0:02:58]} Qe7 $15 {[%emt 0:10:08]} 13. Nd2 {[%emt 0:06:47]} Nxc3 {[%emt 0:05:51]} 14. Qxc3 {[%emt 0:01:53]} Nd7 {[%emt 0:01:45]} 15. Rc1 {[%emt 0:05:55]} e5 {[%emt 0:01:51]} 16. d5 {[%emt 0:03:12]} a5 {[%emt 0:04:00]} 17. a3 {[%emt 0:01:43]} Rf7 {[%emt 0:08:38]} 18. g3 {[%emt 0:01:19]} f4 {[%emt 0:01:47]} 19. gxf4 {[%emt 0:03:38]} exf4 {[%emt 0:00:55]} 20. Kd1 {[%emt 0:00:27]} fxe3 {[%emt 0:03:08]} 21. fxe3 {[%emt 0:00:29]} Re8 {[%emt 0:04:33]} 22. e4 {[%emt 0:02:57]} Ne5 {[%emt 0:01:20]} 23. Kc2 {[%emt 0:01:35]} Rf2 {[%emt 0:01:08]} 24. Kb1 {[%emt 0:02:29]} Rxh2 {[%emt 0:02:14]} 25. Rcf1 {[%emt 0:02:54]} Rh3 {[%emt 0:00:35]} 26. Rf5 {[%emt 0:07:33]} Rxd3 {[%emt 0:04:26]} 27. Rxe5 {[%emt 0:01:12]} Rxc3 {[%emt 0:00:29]} 28. Rxe7 {[%emt 0:00:09]} Rxe7 {[%emt 0:00:13]} 29. bxc3 {[%emt 0:00:03]} Rf7 {[%emt 0:00:50]} 30. Kc2 {[%emt 0:00:50]} Ba6 {[%emt 0:02:37]} 31. a4 {[%emt 0:01:06]} Bc8 {[%emt 0:00:15]} 32. Re1 {[%emt 0:00:35]} Bd7 {[%emt 0:01:27]} 33. Kb3 {[%emt 0:00:54]} Re7 {[%emt 0:00:39]} 34. Nf3 {[%emt 0:00:13]} h6 {[%emt 0:03:19]} 35. Nd4 {[%emt 0:04:02]} g5 {[%emt 0:01:34]} 36. Nb5 {[%emt 0:02:09]} Bxb5 {[%emt 0:02:00]} 37. cxb5 {[%emt 0:00:10]} Kg7 {[%emt 0:00:29]} 38. Kc4 {[%emt 0:00:15]} Re5 {[%emt 0:00:23]} 39. Kd4 {[%emt 0:00:14]} g4 {[%emt 0:00:26]} 40. Ke3 {[%emt 0:00:11]} Kg6 {[%emt 0:00:37]} 41. Rg1 {[%emt 0:00:19]} h5 {[%emt 0:00:32]} 42. Kf4 {[%emt 0:00:08]} Re7 {[%emt 0:00:15]} 43. Re1 {[%emt 0:00:52]} Rf7+ {[%emt 0:00:16]} 44. Kg3 {[%emt 0:00:09]} Rf3+ {[%emt 0:00:28]} 45. Kg2 {[%emt 0:00:04]} Kf6 {[%emt 0:00:22]} 46. Rh1 {[%emt 0:00:12]} Kg5 {[%emt 0:00:16]} 47. c4 {[%emt 0:00:29]} Re3 {[%emt 0:00:34]} 48. Rf1 {[%emt 0:00:19]} Rxe4 {[%emt 0:00:07]} 49. Rf7 {[%emt 0:00:07]} Rxc4 {[%emt 0:00:15]} 50. Rg7+ {[%emt 0:00:21]} Kh4 {[%emt 0:00:06]} 51. Rh7 {[%emt 0:00:15]} Rc2+ {[%emt 0:00:22]} 52. Kf1 {[%emt 0:00:08]} g3 {[%emt 0:00:19]} 53. Rg7 {[%emt 0:00:11]} Kh3 {[%emt 0:00:09]} 54. Rg5 {[%emt 0:00:21]} g2+ {[%emt 0:00:28]} 55. Kg1 {[%emt 0:00:10]} Rc1+ {[%emt 0:00:09]} 56. Kf2 {[%emt 0:00:21]} Rf1+ {[%emt 0:00:15]} 57. Ke2 {[%emt 0:00:00]} g1=Q {[%emt 0:00:17]} 58. Rxh5+ {[%emt 0:00:12]} Kg4 {[%emt 0:00:11]} 59. Rh8 {[%emt 0:00:10]} Rf2+ {[%emt 0:00:22]} 60. Ke3 {[%emt 0:00:08]} Qg3+ {[%emt 0:00:17]} 61. Ke4 {[%emt 0:00:29]} Rf4# {[%emt 0:00:13]} 0-1

[Event "ONJK-C 2019"]
[Site "Borne"]
[Date "2019.08.06"]
[Round "2.3"]
[White "Wierenga, Jael"]
[Black "De Rycke, Tyani"]
[Result "0-1"]
[ECO "D55"]
[WhiteElo "1469"]
[BlackElo "1787"]
[Annotator "NA"]
[PlyCount "66"]
[EventDate "2019.08.05"]
[EventType "swiss"]
[EventCountry "NED"]
[SourceTitle "playchess.com"]
[Source "ChessBase"]
[SourceQuality "1"]
[TimeControl "5400+30"]

1. d4 {[%emt 0:00:00]} d5 {[%emt 0:00:00]} 2. c4 {[%emt 0:00:00]} e6 {[%emt 0:00:00]} 3. Nc3 {[%emt 0:00:00]} Nf6 {[%emt 0:00:00]} 4. Bg5 {[%emt 0:00:00]} Be7 {[%emt 0:00:00]} 5. Nf3 {[%emt 0:00:09]} b6 {[%emt 0:00:02]} 6. e3 {[%emt 0:00:29]} Bb7 {[%emt 0:00:06]} 7. Rc1 {[%emt 0:02:22]} c5 {[%emt 0:00:12]} 8. Be2 {[%emt 0:01:11]} Nbd7 {[%emt 0:00:12]} 9. O-O {[%emt 0:01:27]} O-O {[%emt 0:00:30]} 10. a3 {[%emt 0:04:56]} Rc8 {[%emt 0:00:28]} 11. cxd5 {[%emt 0:05:09]} Nxd5 {[%emt 0:02:02]} 12. Bxe7 {[%emt 0:01:06]} Qxe7 {[%emt 0:00:09]} 13. Qd2 {[%emt 0:02:23]} N7f6 {[%emt 0:00:39]} 14. Nxd5 {[%emt 0:02:26]} Bxd5 {[%emt 0:02:05]} 15. Ne5 {[%emt 0:04:18]} Rfd8 {[%emt 0:05:07]} 16. Bf3 {[%emt 0:04:45]} Bxf3 {[%emt 0:02:41]} 17. gxf3 {[%emt 0:11:19]} Qd6 {[%emt 0:02:15]} 18. Qc2 {[%emt 0:05:56]} Qb8 {[%emt 0:10:40]} 19. Qa4 {[%emt 0:04:18]} Rd5 {[%emt 0:09:05]} 20. Rc3 {[%emt 0:18:24]} Ne8 {[%emt 0:14:01]} 21. b4 {[%emt 0:09:18]} f6 {[%emt 0:01:43]} 22. Nc6 {[%emt 0:00:41]} Qb7 {[%emt 0:02:07]} 23. b5 {[%emt 0:00:43]} a6 {[%emt 0:02:31]} 24. Ne7+ {[%emt 0:12:19]} Qxe7 {[%emt 0:00:08]} 25. Qxa6 {[%emt 0:00:13]} Qd8 {[%emt 0:02:02]} 26. Rfc1 {[%emt 0:00:27]} Ra8 {[%emt 0:00:28]} 27. Qb7 {[%emt 0:00:45]} Nd6 {[%emt 0:00:09]} 28. Qc6 {[%emt 0:01:32]} Rc8 {[%emt 0:00:06]} 29. dxc5 {[%emt 0:00:30]} Rxc6 {[%emt 0:00:22]} 30. bxc6 {[%emt 0:00:13]} bxc5 {[%emt 0:00:30]} 31. e4 {[%emt 0:00:27]} Rg5+ {[%emt 0:00:14]} 32. Kf1 {[%emt 0:00:19]} Qb6 {[%emt 0:00:10]} 33. f4 {[%emt 0:00:54]} Qb5+ {[%emt 0:00:28]} 0-1

[Event "ONJK-C 2019"]
[Site "Borne"]
[Date "2019.08.06"]
[Round "2.4"]
[White "Goudriaan, Rafael"]
[Black "Den Heijer, Rolinde"]
[Result "1-0"]
[ECO "B23"]
[WhiteElo "1719"]
[BlackElo "1471"]
[Annotator "NA"]
[PlyCount "61"]
[EventDate "2019.08.05"]
[EventType "swiss"]
[EventCountry "NED"]
[SourceTitle "playchess.com"]
[Source "ChessBase"]
[SourceQuality "1"]
[TimeControl "5400+30"]

1. e4 {[%emt 0:00:00]} c5 {[%emt 0:00:00]} 2. Nc3 {[%emt 0:00:00]} Nc6 {[%emt 0:00:00]} 3. f4 {[%emt 0:00:00]} g6 {[%emt 0:00:24]} 4. Nf3 {[%emt 0:00:19]} Bg7 {[%emt 0:00:24]} 5. Bc4 {[%emt 0:00:30]} d6 {[%emt 0:00:45]} 6. d3 {[%emt 0:00:10]} Nf6 {[%emt 0:00:51]} 7. O-O {[%emt 0:00:14]} O-O {[%emt 0:00:34]} 8. h3 {[%emt 0:00:27]} a6 {[%emt 0:03:41]} 9. a4 {[%emt 0:00:25]} Ne8 {[%emt 0:02:54]} 10. Bd2 {[%emt 0:01:59]} Nc7 {[%emt 0:01:47]} 11. Qe2 {[%emt 0:02:29]} Be6 {[%emt 0:02:36]} 12. Bxe6 {[%emt 0:00:51]} Nxe6 {[%emt 0:00:41]} 13. g4 {[%emt 0:00:10]} Ned4 {[%emt 0:01:30]} 14. Nxd4 {[%emt 0:01:05]} Nxd4 {[%emt 0:00:27]} 15. Qg2 {[%emt 0:00:51]} Nxc2 {[%emt 0:05:15]} 16. Rac1 {[%emt 0:00:49]} Bd4+ {[%emt 0:00:47]} 17. Kh1 {[%emt 0:00:19]} Ne3 {[%emt 0:00:16]} 18. Bxe3 {[%emt 0:00:15]} Bxe3 {[%emt 0:00:16]} 19. Rce1 {[%emt 0:00:06]} Bd4 {[%emt 0:00:17]} 20. f5 {[%emt 0:00:07]} e6 {[%emt 0:01:18]} 21. Rf3 {[%emt 0:01:27]} Bf6 {[%emt 0:02:27]} 22. Ref1 {[%emt 0:00:27]} Rc8 {[%emt 0:01:47]} 23. g5 {[%emt 0:00:26]} Be5 {[%emt 0:10:03]} 24. f6 {[%emt 0:01:20]} h5 {[%emt 0:04:39]} 25. gxh6 {[%emt 0:00:32]} Kh7 {[%emt 0:00:24]} 26. h4 {[%emt 0:00:35]} Rg8 {[%emt 0:00:29]} 27. Nd1 {[%emt 0:02:29]} d5 {[%emt 0:02:41]} 28. Nf2 {[%emt 0:00:16]} Rc7 {[%emt 0:03:40]} 29. Nh3 {[%emt 0:00:25]} Bd4 {[%emt 0:05:28]} 30. Ng5+ {[%emt 0:01:54]} Kxh6 {[%emt 0:01:45]} 31. Qd2 {[%emt 0:00:14]} 1-0

[Event "ONJK-C 2019"]
[Site "Borne"]
[Date "2019.08.06"]
[Round "2.5"]
[White "De Vries, Fabian"]
[Black "Van Doren, Frodo"]
[Result "1-0"]
[ECO "C54"]
[WhiteElo "1704"]
[BlackElo "1433"]
[Annotator "NA"]
[PlyCount "97"]
[EventDate "2019.08.05"]
[EventType "swiss"]
[EventCountry "NED"]
[SourceTitle "playchess.com"]
[Source "ChessBase"]
[SourceQuality "1"]
[TimeControl "5400+30"]

1. e4 {[%emt 0:00:00]} e5 {[%emt 0:00:00]} 2. Nf3 {[%emt 0:00:00]} Nc6 {[%emt 0:00:00]} 3. Bc4 {[%emt 0:00:00]} Bc5 {[%emt 0:00:00]} 4. O-O {[%emt 0:00:00]} Nf6 {[%emt 0:00:00]} 5. d3 {[%emt 0:00:00]} h6 {[%emt 0:00:54]} 6. c3 {[%emt 0:00:27]} O-O {[%emt 0:00:29]} 7. a4 {[%emt 0:00:26]} Re8 {[%emt 0:01:12]} 8. b4 {[%emt 0:01:23]} Bf8 {[%emt 0:04:01]} 9. Nbd2 {[%emt 0:06:24]} d5 {[%emt 0:05:45]} 10. exd5 {[%emt 0:02:43]} Nxd5 {[%emt 0:00:23]} 11. Re1 {[%emt 0:03:50]} Nb6 {[%emt 0:15:54]} 12. b5 {[%emt 0:06:18]} Na5 {[%emt 0:08:29]} 13. Rxe5 {[%emt 0:06:36]} Bg4 {[%emt 0:09:58]} 14. Rxe8 {[%emt 0:06:42]} Qxe8 {[%emt 0:00:06]} 15. Ba2 {[%emt 0:01:11]} Rd8 {[%emt 0:09:53]} 16. d4 {[%emt 0:08:11]} Bxf3 {[%emt 0:02:17]} 17. Nxf3 {[%emt 0:06:33]} Nac4 {[%emt 0:02:13]} 18. Qf1 {[%emt 0:06:55]} Nd6 {[%emt 0:01:12]} 19. Bf4 {[%emt 0:02:07]} Nxa4 {[%emt 0:02:15]} 20. Bxd6 {[%emt 0:05:16]} cxd6 {[%emt 0:04:02]} 21. Bxf7+ {[%emt 0:00:45]} Qxf7 {[%emt 0:00:07]} 22. Rxa4 {[%emt 0:00:06]} b6 {[%emt 0:00:16]} 23. Qc4 {[%emt 0:03:55]} Rd7 {[%emt 0:01:37]} 24. Qxf7+ {[%emt 0:01:24]} Rxf7 {[%emt 0:00:13]} 25. Kf1 {[%emt 0:01:20]} Rc7 {[%emt 0:01:20]} 26. c4 {[%emt 0:01:00]} d5 {[%emt 0:03:23]} 27. cxd5 {[%emt 0:01:15]} Rd7 {[%emt 0:00:16]} 28. Ne5 {[%emt 0:11:06]} Rxd5 {[%emt 0:00:52]} 29. Ke2 {[%emt 0:01:42]} Rxb5 {[%emt 0:01:09]} 30. Rxa7 {[%emt 0:00:06]} Bd6 {[%emt 0:02:47]} 31. Nd7 {[%emt 0:07:38]} Bb4 {[%emt 0:01:39]} 32. Rb7 {[%emt 0:00:56]} Bc3 {[%emt 0:01:04]} 33. Kd3 {[%emt 0:03:11]} Be1 {[%emt 0:02:19]} 34. Rxb6 {[%emt 0:02:29]} Rxb6 {[%emt 0:00:07]} 35. Nxb6 {[%emt 0:00:06]} Bxf2 {[%emt 0:00:05]} 36. Ke4 {[%emt 0:00:34]} Kf7 {[%emt 0:00:29]} 37. Nc4 {[%emt 0:00:27]} Ke6 {[%emt 0:00:33]} 38. d5+ {[%emt 0:00:17]} Kd7 {[%emt 0:00:35]} 39. Ke5 {[%emt 0:00:36]} Ba7 {[%emt 0:01:09]} 40. h3 {[%emt 0:00:20]} Bb8+ {[%emt 0:00:13]} 41. Kf5 {[%emt 0:00:42]} Ba7 {[%emt 0:02:07]} 42. Ke5 {[%emt 0:01:34]} Bb8+ {[%emt 0:01:24]} 43. d6 {[%emt 0:00:06]} Ba7 {[%emt 0:00:16]} 44. Kd5 {[%emt 0:00:16]} Bf2 {[%emt 0:02:01]} 45. Ne5+ {[%emt 0:00:12]} Ke8 {[%emt 0:00:22]} 46. Ke6 {[%emt 0:00:09]} Bh4 {[%emt 0:01:34]} 47. d7+ {[%emt 0:00:10]} Kd8 {[%emt 0:00:08]} 48. Nf7+ {[%emt 0:00:21]} Kc7 {[%emt 0:00:14]} 49. d8=Q+ {[%emt 0:00:17]} 1-0

[Event "ONJK-C 2019"]
[Site "Borne"]
[Date "2019.08.06"]
[Round "2.6"]
[White "Voorbergen, Milan"]
[Black "Smeets, Kobe"]
[Result "0-1"]
[ECO "B20"]
[WhiteElo "1410"]
[BlackElo "1666"]
[Annotator "NA"]
[PlyCount "140"]
[EventDate "2019.08.05"]
[EventType "swiss"]
[EventCountry "NED"]
[SourceTitle "playchess.com"]
[Source "ChessBase"]
[SourceQuality "1"]
[TimeControl "5400+30"]

1. e4 {[%emt 0:00:00]} c5 {[%emt 0:00:00]} 2. Nc3 {[%emt 0:00:00]} e6 {[%emt 0:00:00]} 3. Bc4 {[%emt 0:01:23]} a6 {[%emt 0:00:17]} 4. a3 {[%emt 0:00:24]} b5 {[%emt 0:00:22]} 5. Ba2 {[%emt 0:00:09]} Bb7 {[%emt 0:00:36]} 6. d3 {[%emt 0:00:49]} Nc6 {[%emt 0:01:24]} 7. Nf3 {[%emt 0:00:45]} Nge7 {[%emt 0:01:59]} 8. O-O {[%emt 0:00:35]} Ng6 {[%emt 0:00:29]} 9. Be3 {[%emt 0:03:01]} Be7 {[%emt 0:03:17]} 10. d4 {[%emt 0:03:38]} cxd4 {[%emt 0:02:18]} 11. Nxd4 {[%emt 0:01:24]} O-O {[%emt 0:00:31]} 12. Nf3 {[%emt 0:00:53]} Rc8 {[%emt 0:02:04]} 13. Qd2 {[%emt 0:04:09]} Qc7 {[%emt 0:05:26]} 14. Rad1 {[%emt 0:02:33]} Rfd8 {[%emt 0:01:09]} 15. Bg5 {[%emt 0:01:44]} Bxg5 {[%emt 0:03:58]} 16. Qxg5 {[%emt 0:00:52]} Na5 {[%emt 0:05:39]} 17. Qd2 {[%emt 0:05:01]} Nc4 {[%emt 0:01:38]} 18. Bxc4 {[%emt 0:00:32]} Qxc4 {[%emt 0:00:16]} 19. Rfe1 {[%emt 0:03:21]} d5 {[%emt 0:04:04]} 20. Qd4 {[%emt 0:06:29]} Qxd4 {[%emt 0:01:01]} 21. Rxd4 {[%emt 0:00:20]} e5 {[%emt 0:00:12]} 22. Rd2 {[%emt 0:00:54]} d4 {[%emt 0:00:09]} 23. Ne2 {[%emt 0:00:37]} Bxe4 {[%emt 0:02:47]} 24. Nexd4 {[%emt 0:06:56]} Bxf3 {[%emt 0:00:55]} 25. Nxf3 {[%emt 0:02:25]} Rxd2 {[%emt 0:00:06]} 26. Nxd2 {[%emt 0:00:05]} Rxc2 {[%emt 0:00:12]} 27. Nf3 {[%emt 0:00:10]} Rxb2 {[%emt 0:00:39]} 28. h3 {[%emt 0:01:03]} f6 {[%emt 0:00:22]} 29. Rc1 {[%emt 0:00:13]} h6 {[%emt 0:00:49]} 30. Rc6 {[%emt 0:00:22]} a5 {[%emt 0:00:20]} 31. Rc5 {[%emt 0:03:01]} a4 {[%emt 0:01:27]} 32. g3 {[%emt 0:01:19]} b4 {[%emt 0:01:29]} 33. axb4 {[%emt 0:00:54]} a3 {[%emt 0:00:10]} 34. Ra5 {[%emt 0:00:11]} a2 {[%emt 0:00:12]} 35. Kg2 {[%emt 0:00:26]} e4 {[%emt 0:00:13]} 36. Ne1 {[%emt 0:01:45]} Ne5 {[%emt 0:01:52]} 37. b5 {[%emt 0:00:55]} e3 {[%emt 0:00:23]} 38. Kf1 {[%emt 0:00:57]} exf2 {[%emt 0:00:49]} 39. Ng2 {[%emt 0:00:49]} Rb1+ {[%emt 0:00:06]} 40. Kxf2 {[%emt 0:00:22]} a1=Q {[%emt 0:00:17]} 41. Rxa1 {[%emt 0:00:20]} Rxa1 {[%emt 0:00:07]} 42. Ne3 {[%emt 0:00:19]} Rb1 {[%emt 0:00:14]} 43. g4 {[%emt 0:00:22]} Rxb5 {[%emt 0:00:11]} 44. Kg3 {[%emt 0:00:23]} Rb3 {[%emt 0:00:13]} 45. Kf4 {[%emt 0:01:10]} Rxe3 {[%emt 0:00:43]} 46. Kxe3 {[%emt 0:00:06]} g5 {[%emt 0:00:14]} 47. Ke4 {[%emt 0:00:10]} Kf7 {[%emt 0:00:13]} 48. Ke3 {[%emt 0:00:41]} Kg6 {[%emt 0:00:09]} 49. Ke4 {[%emt 0:00:38]} Nxg4 {[%emt 0:01:54]} 50. hxg4 {[%emt 0:00:20]} h5 {[%emt 0:00:04]} 51. gxh5+ {[%emt 0:00:18]} Kxh5 {[%emt 0:00:07]} 52. Kf3 {[%emt 0:02:35]} f5 {[%emt 0:00:08]} 53. Kg3 {[%emt 0:00:21]} f4+ {[%emt 0:00:25]} 54. Kf3 {[%emt 0:00:47]} Kh4 {[%emt 0:00:08]} 55. Kg2 {[%emt 0:02:58]} Kg4 {[%emt 0:00:06]} 56. Kh2 {[%emt 0:01:10]} Kf3 {[%emt 0:00:53]} 57. Kg1 {[%emt 0:00:42]} Kg3 {[%emt 0:00:09]} 58. Kf1 {[%emt 0:00:14]} f3 {[%emt 0:00:22]} 59. Kg1 {[%emt 0:00:56]} f2+ {[%emt 0:00:08]} 60. Kf1 {[%emt 0:00:26]} g4 {[%emt 0:00:07]} 61. Ke2 {[%emt 0:00:11]} Kg2 {[%emt 0:00:35]} 62. Ke3 {[%emt 0:00:13]} f1=Q {[%emt 0:00:11]} 63. Ke4 {[%emt 0:00:04]} Kh3 {[%emt 0:00:26]} 64. Kd4 {[%emt 0:00:08]} g3 {[%emt 0:00:49]} 65. Ke4 {[%emt 0:00:13]} g2 {[%emt 0:00:10]} 66. Ke3 {[%emt 0:00:24]} g1=Q+ {[%emt 0:00:15]} 67. Ke4 {[%emt 0:00:04]} Qe2+ {[%emt 0:00:24]} 68. Kf5 {[%emt 0:00:10]} Qgf2+ {[%emt 0:00:21]} 69. Kg5 {[%emt 0:00:45]} Qg4+ {[%emt 0:00:08]} 70. Kh6 {[%emt 0:00:16]} Qfh4# {[%emt 0:00:10]} 0-1